bitfinex-derivatives/quotes_BTCF0:USTF0_20241223
["timestamp","ask_amount","ask_price","bid_price","bid_amount"]
[1734985013965,0.11079326,92818.0,92809.0,0.2858]
[1734985014858,0.11079326,92818.0,92812.0,0.3608]
[1734985015065,0.00861,92817.0,92812.0,0.3608]
[1734985015375,0.01111562,92819.0,92812.0,0.3608]
[1734985015665,0.00161683,92837.0,92818.0,0.3608]
[1734985015874,0.00161683,92837.0,92830.0,0.3608]
[1734985016266,0.3608,92862.0,92833.0,0.053938]
[1734985016472,0.3608,92862.0,92846.0,0.3608]
[1734985016766,0.10771973,92859.0,92846.0,0.3608]
[1734985016969,0.3608,92862.0,92846.0,0.3608]
[1734985017264,0.37205207,92862.0,92846.0,0.3608]
[1734985017465,0.37305207,92862.0,92846.0,0.3618]
[1734985017664,0.00512,92861.0,92846.0,0.3618]
[1734985017868,0.00512,92861.0,92855.0,0.3608]
[1734985018366,0.00512,92861.0,92846.0,0.3618]
[1734985018367,0.36592,92861.0,92854.0,0.3608]
[1734985018572,0.00512,92861.0,92854.0,0.3608]
[1734985019171,0.10769131,92860.0,92854.0,0.3608]
[1734985019368,0.00512,92861.0,92854.0,0.3608]
[1734985019761,0.10769189,92859.0,92854.0,0.3608]
[1734985019962,0.00612,92861.0,92854.0,0.3608]
[1734985020162,0.3608,92860.0,92847.0,0.1835]
[1734985020372,0.60625391,92860.0,92852.0,0.3608]
[1734985020561,0.60625391,92860.0,92854.0,0.001]
[1734985021175,0.60625391,92860.0,92847.0,0.1835]
[1734985021470,0.60625391,92860.0,92847.0,0.1855]
[1734985022063,0.60725391,92860.0,92847.0,0.1835]
[1734985022570,0.3608,92852.0,92843.0,0.3608]
[1734985023166,0.10769653,92851.0,92843.0,0.3608]
[1734985023368,0.10769653,92851.0,92834.0,0.54942]
[1734985023369,0.3608,92844.0,92835.0,0.3608]
[1734985023570,0.3608,92836.0,92825.0,0.3608]
[1734985023868,0.13776202,92835.0,92816.0,0.3608]
[1734985024073,0.24546551,92835.0,92816.0,0.3608]
[1734985024275,0.24546551,92835.0,92829.0,0.3608]
[1734985024475,0.24546551,92835.0,92829.0,0.2858]
[1734985024772,0.24546551,92835.0,92801.0,0.3651]
[1734985024773,0.3608,92831.0,92801.0,0.1831]
[1734985024977,0.13776202,92811.0,92801.0,0.1831]
[1734985026170,0.3608,92813.0,92803.0,0.3608]
[1734985026477,0.3608,92829.0,92812.0,0.3608]
[1734985026869,0.46855165,92829.0,92812.0,0.3608]
[1734985027070,0.3608,92829.0,92812.0,0.3608]
[1734985027266,0.13776202,92822.0,92812.0,0.3608]
[1734985027473,0.004,92813.0,92812.0,0.3608]
[1734985028176,0.004,92813.0,92812.0,0.3618]
[1734985028479,0.3648,92813.0,92812.0,0.001]
[1734985028778,0.4685441,92813.0,92801.0,0.1091]
[1734985029578,0.3608,92805.0,92789.0,0.1826]
[1734985029772,0.13776202,92800.0,92786.0,0.3608]
[1734985029975,0.3608,92796.0,92786.0,0.3608]
[1734985030279,0.3608,92796.0,92771.0,0.189]
[1734985030280,0.3608,92793.0,92774.0,0.3608]
[1734985030474,0.3608,92793.0,92782.0,0.3608]
[1734985030674,0.3608,92806.0,92792.0,0.3608]
[1734985031179,0.3608,92806.0,92799.0,0.00147949]
[1734985031577,0.13776202,92810.0,92799.0,0.00147949]
[1734985031578,0.3608,92800.0,92799.0,0.00147949]
[1734985031782,0.3608,92800.0,92771.0,0.189]
[1734985031975,0.3608,92787.0,92772.0,0.3608]
[1734985032674,0.10778243,92786.0,92772.0,0.3608]
[1734985033374,0.49912203,92800.0,92782.0,0.3608]
[1734985033569,0.3608,92800.0,92782.0,0.3608]
[1734985033771,0.49856202,92800.0,92782.0,0.3608]
[1734985034270,0.13776202,92792.0,92773.0,0.3608]
[1734985034473,0.13776202,92783.0,92773.0,0.3608]
[1734985035480,0.13776202,92783.0,92772.0,0.3628]
[1734985035676,0.3608,92784.0,92772.0,0.3608]
[1734985035877,0.005,92783.0,92779.0,0.3608]
[1734985036275,0.10778417,92791.0,92779.0,0.3608]
[1734985036478,0.005,92783.0,92779.0,0.3608]
[1734985036969,0.006,92783.0,92779.0,0.3608]
[1734985037576,0.006,92783.0,92782.0,0.3608]
[1734985037780,0.001,92783.0,92782.0,0.3608]
[1734985037980,0.003,92783.0,92782.0,0.3608]
[1734985038576,0.005,92783.0,92772.0,0.3608]
[1734985039079,0.004,92783.0,92772.0,0.3608]
[1734985039383,0.004,92783.0,92767.0,0.5516]
[1734985039586,0.3608,92797.0,92779.0,0.3608]
[1734985039974,0.16248778,92796.0,92779.0,0.3608]
[1734985040374,0.37810363,92797.0,92788.0,0.3608]
[1734985040375,0.01730363,92797.0,92788.0,0.3608]
[1734985040576,0.3608,92808.0,92788.0,0.3608]
[1734985041085,0.13776202,92800.0,92788.0,0.3608]
[1734985041287,0.004,92783.0,92779.0,0.3618]
[1734985041579,0.37893032,92808.0,92782.0,0.3608]
[1734985041789,0.37893032,92808.0,92793.0,0.3608]
[1734985041975,0.10776558,92806.0,92793.0,0.3608]
[1734985042277,0.37949033,92808.0,92793.0,0.3608]
[1734985042483,0.37893032,92808.0,92793.0,0.3608]
[1734985042683,0.37893032,92808.0,92794.0,0.1977]
[1734985043075,0.38393032,92808.0,92794.0,0.1977]
[1734985043874,0.38393032,92808.0,92794.0,0.1227]
[1734985044070,0.38493032,92808.0,92794.0,0.1227]
[1734985044279,0.006,92808.0,92801.0,0.3608]
[1734985044484,0.002,92808.0,92804.0,0.3608]
[1734985044687,0.3608,92831.0,92804.0,0.3608]
[1734985044688,0.3608,92845.0,92804.0,0.3608]
[1734985044984,0.3608,92831.0,92815.0,0.3608]
[1734985045176,0.13776202,92830.0,92815.0,0.3608]
[1734985045377,0.13776202,92830.0,92804.0,0.36241639]
[1734985045576,0.13776202,92830.0,92804.0,0.36341639]
[1734985046185,0.3608,92831.0,92813.0,0.3608]
[1734985046987,0.13776202,92830.0,92813.0,0.3608]
[1734985047390,0.3608,92831.0,92813.0,0.3608]
[1734985047993,0.00261652,92824.0,92813.0,0.3608]
[1734985048789,0.00261652,92824.0,92813.0,0.2858]
[1734985049480,0.00261652,92824.0,92804.0,0.36241639]
[1734985049789,0.00261652,92824.0,92812.0,0.3608]
[1734985050693,0.00161652,92824.0,92812.0,0.3608]
[1734985051688,0.00060001,92849.0,92825.0,0.053942]
[1734985051994,0.10773772,92848.0,92840.0,0.3608]
[1734985052391,0.49856202,92860.0,92840.0,0.3608]
[1734985052593,0.28412324,92852.0,92840.0,0.3608]
[1734985052891,0.49856202,92850.0,92831.0,0.3608]
[1734985053087,0.3608,92842.0,92829.0,0.2032]
[1734985053396,0.3608,92833.0,92811.0,0.2023]
[1734985053594,0.13776202,92830.0,92811.0,0.2023]
[1734985053789,0.3608,92822.0,92809.0,0.3608]
[1734985054089,0.3608,92822.0,92805.0,0.2032]
[1734985054090,0.3608,92810.0,92805.0,0.2032]
[1734985054283,0.3608,92810.0,92800.0,0.3608]
[1734985054490,0.3608,92810.0,92792.0,0.2197111]
[1734985054679,0.16230105,92809.0,92781.0,0.1882]
[1734985054885,0.16230105,92809.0,92777.0,0.3608]
[1734985054886,0.49856202,92791.0,92777.0,0.3608]
[1734985055088,0.3608,92791.0,92777.0,0.3608]
[1734985055481,0.00512,92790.0,92777.0,0.3608]
[1734985055692,0.11286991,92790.0,92777.0,0.3608]
[1734985056594,0.11286991,92790.0,92777.0,0.3628]
[1734985057388,0.25063193,92790.0,92777.0,0.3628]
[1734985057689,0.25063193,92790.0,92777.0,0.3638]
[1734985057894,0.11286991,92790.0,92777.0,0.3638]
[1734985058396,0.3608,92782.0,92777.0,0.003]
[1734985058583,0.3608,92782.0,92759.0,0.3608]
[1734985058785,0.13776202,92770.0,92759.0,0.3608]
[1734985059286,0.3608,92773.0,92759.0,0.3608]
[1734985059683,0.13776202,92770.0,92758.0,0.00161695]
[1734985059884,0.26848948,92772.0,92758.0,0.00161695]
[1734985060183,0.3608,92763.0,92758.0,0.00161695]
[1734985060583,0.3608,92763.0,92759.0,0.008]
[1734985060584,0.16138603,92762.0,92759.0,0.008]
[1734985060783,0.3608,92760.0,92739.0,0.00161764]
[1734985060985,0.3608,92745.0,92739.0,0.00161764]
[1734985061397,0.13776202,92750.0,92739.0,0.00161764]
[1734985061689,0.10782601,92749.0,92739.0,0.00161764]
[1734985061894,0.10782601,92749.0,92730.0,0.3608]
[1734985061895,0.3608,92743.0,92730.0,0.3608]
[1734985062095,0.3608,92734.0,92722.0,0.20732]
[1734985062288,0.3608,92726.0,92712.0,0.3608]
[1734985062682,0.13776202,92722.0,92712.0,0.3608]
[1734985063493,0.10784229,92721.0,92712.0,0.3608]
[1734985063688,0.01736697,92722.0,92712.0,0.3608]
[1734985063888,0.3608,92726.0,92712.0,0.3608]
[1734985064890,0.002,92721.0,92712.0,0.3608]
[1734985065196,0.002,92721.0,92712.0,0.3618]
[1734985065695,0.38317883,92726.0,92712.0,0.3608]
[1734985065893,0.13776202,92722.0,92712.0,0.3608]
[1734985067102,0.003,92721.0,92712.0,0.3608]
[1734985067690,0.10785566,92720.0,92712.0,0.3608]
[1734985068094,0.14076202,92722.0,92712.0,0.3608]
[1734985068291,0.10785566,92721.0,92712.0,0.3608]
[1734985068493,0.10985566,92721.0,92712.0,0.3608]
[1734985068695,0.002,92721.0,92711.0,0.00161787]
[1734985068993,0.11085508,92720.0,92711.0,0.00161787]
[1734985069500,0.3608,92718.0,92700.0,0.1]
[1734985069699,0.13776202,92710.0,92700.0,0.1]
[1734985070894,0.49856202,92710.0,92700.0,0.1]
[1734985071402,0.002,92710.0,92704.0,0.3608]
[1734985071596,0.002,92710.0,92700.0,0.1]
[1734985071787,0.002,92710.0,92705.0,0.3608]
[1734985072190,0.01777882,92726.0,92708.0,0.3608]
[1734985072506,0.00161827,92729.0,92723.0,0.3608]
[1734985073001,0.10785508,92728.0,92723.0,0.3608]
[1734985073200,0.00161827,92729.0,92723.0,0.3608]
[1734985073405,0.005,92726.0,92723.0,0.3608]
[1734985073590,0.005,92726.0,92720.0,0.3608]
[1734985073793,0.005,92726.0,92720.0,0.2858]
[1734985074000,0.3608,92723.0,92708.0,0.3608]
[1734985074297,0.13776202,92720.0,92708.0,0.3608]
[1734985074600,0.3608,92714.0,92700.0,0.2988]
[1734985075503,0.3608,92714.0,92708.0,0.001]
[1734985076201,0.27065468,92713.0,92708.0,0.001]
[1734985076398,0.27065468,92713.0,92700.0,0.03751432]
[1734985076399,0.13776202,92710.0,92700.0,0.03751432]
[1734985076600,0.13776202,92710.0,92676.0,0.00161827]
[1734985076601,0.3608,92701.0,92676.0,0.00161827]
[1734985076809,0.3608,92677.0,92655.0,0.1966]
[1734985076992,0.13776202,92670.0,92655.0,0.1966]
[1734985077198,0.13776202,92670.0,92651.0,0.3957]
[1734985077199,0.3608,92664.0,92651.0,0.3957]
[1734985077704,0.13776202,92661.0,92651.0,0.3957]
[1734985077904,0.3608,92656.0,92655.0,0.009]
[1734985078101,0.3608,92656.0,92655.0,0.016]
[1734985078506,0.3608,92656.0,92655.0,0.007]
[1734985079299,0.001,92664.0,92655.0,0.007]
[1734985079603,0.3608,92663.0,92655.0,0.007]
[1734985080114,0.00513,92662.0,92655.0,0.007]
[1734985080305,0.001,92656.0,92655.0,0.009]
[1734985080695,0.10892667,92656.0,92655.0,0.009]
[1734985080901,0.10792667,92656.0,92651.0,0.006]
[1734985081103,0.3608,92654.0,92632.0,0.5681]
[1734985081914,0.3608,92654.0,92632.0,0.56926]
[1734985083009,0.011,92656.0,92651.0,0.001]
[1734985083404,0.008,92656.0,92651.0,0.001]
[1734985083599,0.00513,92662.0,92645.0,0.054047]
[1734985083807,0.002,92654.0,92645.0,0.054047]
[1734985084103,0.13776202,92660.0,92636.0,0.00161874]
[1734985084305,0.001,92656.0,92646.0,1.5]
[1734985084507,0.001,92656.0,92636.0,0.30161874]
[1734985084508,0.3608,92653.0,92651.0,0.001]
[1734985085716,0.16151828,92652.0,92651.0,0.001]
[1734985086212,0.16151828,92652.0,92636.0,0.00161874]
[1734985086510,0.3608,92643.0,92636.0,0.00761874]
[1734985086920,0.007,92652.0,92651.0,0.001]
[1734985087402,0.3678,92652.0,92651.0,0.001]
[1734985087598,0.3628,92652.0,92647.0,0.2016]
[1734985087812,0.3658,92652.0,92647.0,0.2016]
[1734985088903,0.3658,92652.0,92636.0,0.00161874]
[1734985089104,0.3608,92644.0,92636.0,0.00161874]
[1734985090210,0.3628,92644.0,92636.0,0.00161874]
[1734985091917,0.002,92644.0,92636.0,0.00161874]
[1734985092108,0.002,92644.0,92639.0,0.3608]
[1734985092413,0.002,92644.0,92636.0,0.00161874]
[1734985093416,0.003,92644.0,92636.0,0.00161874]
[1734985094117,0.002,92644.0,92639.0,0.3608]
[1734985094414,0.3608,92652.0,92650.0,0.054044]
[1734985094624,0.02093937,92748.0,92636.0,0.30161874]
[1734985094625,0.3608,92694.0,92651.0,0.5718]
[1734985094802,0.3608,92697.0,92672.0,0.054031]
[1734985095011,0.3608,92697.0,92678.0,0.054028]
[1734985095206,0.3608,92697.0,92678.0,0.414828]
[1734985095407,0.3608,92697.0,92678.0,0.3608]
[1734985095708,0.3608,92689.0,92675.0,0.3608]
[1734985096217,0.3608,92689.0,92678.0,0.007]
[1734985096712,0.3608,92689.0,92675.0,0.003]
[1734985096908,0.3608,92678.0,92675.0,0.003]
[1734985097310,0.3608,92678.0,92673.0,0.2125]
[1734985097514,0.3648,92689.0,92675.0,0.3608]
[1734985098011,0.3648,92689.0,92673.0,0.2125]
[1734985098012,0.3648,92689.0,92682.0,0.054026]
[1734985098219,0.004,92689.0,92685.0,0.3608]
[1734985098407,0.004,92689.0,92679.0,0.13776202]
[1734985098408,0.004,92689.0,92682.0,0.3608]
[1734985098609,0.004,92689.0,92683.0,0.3608]
[1734985098808,0.00161894,92696.0,92683.0,0.3608]
[1734985099115,0.00161894,92696.0,92680.0,0.1289]
[1734985099421,0.00161894,92696.0,92680.0,0.14417218]
[1734985099609,0.3608,92692.0,92682.0,0.005]
[1734985100113,0.3608,92692.0,92680.0,0.13776202]
[1734985100613,0.3608,92684.0,92680.0,0.14176202]
[1734985100818,0.3608,92693.0,92680.0,0.19578902]
[1734985101116,0.3608,92693.0,92680.0,0.14176202]
[1734985101515,0.3608,92693.0,92680.0,0.004]
[1734985101911,0.3608,92693.0,92682.0,0.005]
[1734985102307,0.3638,92693.0,92680.0,0.19178902]
[1734985102513,0.3638,92693.0,92680.0,0.55258902]
[1734985102713,0.3638,92693.0,92680.0,0.13776202]
[1734985102920,0.3638,92693.0,92684.0,0.054024]
[1734985103313,0.3638,92693.0,92679.0,0.3608]
[1734985103519,0.3608,92684.0,92674.0,0.2049]
[1734985103719,0.3608,92684.0,92680.0,0.008]
[1734985104021,0.3608,92693.0,92683.0,0.3608]
[1734985104223,0.3608,92693.0,92680.0,0.14576202]
[1734985104429,0.3608,92693.0,92681.0,0.3608]
[1734985104613,0.3608,92693.0,92680.0,0.14576202]
[1734985104810,0.3608,92693.0,92680.0,0.50656202]
[1734985105017,0.3608,92693.0,92680.0,0.008]
[1734985105317,0.3608,92693.0,92684.0,0.003]
[1734985106020,0.3608,92693.0,92680.0,0.008]
[1734985106416,0.3608,92693.0,92680.0,0.003]
[1734985106615,0.3608,92685.0,92680.0,0.003]
[1734985106815,0.3608,92685.0,92684.0,0.001]
[1734985107815,0.3628,92693.0,92684.0,0.001]
[1734985108013,0.3608,92693.0,92684.0,0.001]
[1734985108622,0.002,92685.0,92684.0,0.001]
[1734985108806,0.002,92685.0,92675.0,0.3608]
[1734985109212,0.3608,92693.0,92684.0,0.004]
[1734985109619,0.3608,92693.0,92684.0,0.005]
[1734985109815,0.3608,92693.0,92684.0,0.006]
[1734985111323,0.00060001,92722.0,92688.0,0.054022]
[1734985111523,0.01561352,92729.0,92712.0,0.13776202]
[1734985111719,0.25249154,92730.0,92719.0,0.13776202]
[1734985111934,0.25249154,92730.0,92726.0,0.054]
[1734985112221,0.01491152,92743.0,92726.0,0.054]
[1734985112222,0.3608,92745.0,92731.0,0.053997]
[1734985112521,0.3608,92745.0,92726.0,0.3]
[1734985112522,0.3608,92745.0,92738.0,0.053993]
[1734985112716,0.01531288,92748.0,92736.0,0.3608]
[1734985112910,0.01531288,92748.0,92730.0,0.13776202]
[1734985113117,0.01531288,92748.0,92736.0,0.414794]
[1734985113323,0.00161787,92749.0,92738.0,0.13776202]
[1734985113513,0.00161787,92749.0,92736.0,0.36192]
[1734985113713,0.00161787,92749.0,92738.0,0.053993]
[1734985113921,0.00161787,92749.0,92739.0,0.13776202]
[1734985114314,0.00161787,92749.0,92741.0,0.053991]
[1734985114514,0.00161787,92749.0,92739.0,0.49968202]
[1734985114515,0.005,92745.0,92739.0,0.49968202]
[1734985114718,0.005,92745.0,92739.0,0.13776202]
[1734985114931,0.005,92745.0,92736.0,0.001]
[1734985115120,0.01061787,92749.0,92737.0,0.3608]
[1734985115312,0.01461787,92749.0,92739.0,0.13876202]
[1734985115624,0.01461787,92749.0,92748.0,0.3608]
[1734985115823,0.3608,92768.0,92748.0,0.6608]
[1734985116020,0.00056001,92779.0,92761.0,0.3608]
[1734985116222,0.3608,92785.0,92761.0,0.3608]
[1734985117120,0.3608,92775.0,92761.0,0.3608]
[1734985117323,0.3608,92766.0,92749.0,0.2416]
[1734985117516,0.3608,92766.0,92745.0,0.3608]
[1734985117825,0.3608,92775.0,92765.0,0.3608]
[1734985118128,0.3608,92775.0,92768.0,0.3608]
[1734985118420,0.3628,92775.0,92768.0,0.3608]
[1734985118626,0.001,92766.0,92764.0,0.3608]
[1734985118824,0.001,92766.0,92764.0,0.2858]
[1734985120215,0.3648,92775.0,92768.0,0.001]
[1734985120514,0.001,92775.0,92768.0,0.001]
[1734985120827,0.36241726,92787.0,92771.0,0.053974]
[1734985121325,0.005,92775.0,92771.0,0.053974]
[1734985121828,0.004,92775.0,92771.0,0.053974]
[1734985122015,0.36241726,92787.0,92771.0,0.053974]
[1734985122631,0.3608,92779.0,92770.0,0.13776202]
[1734985123126,0.3608,92779.0,92764.0,0.2858]
[1734985124025,0.001,92775.0,92771.0,0.001]
[1734985124214,0.005,92775.0,92771.0,0.001]
[1734985124619,0.005,92775.0,92764.0,0.2118]
[1734985124620,0.004,92775.0,92764.0,0.2118]
[1734985124928,0.3648,92779.0,92764.0,0.2118]
[1734985125721,0.003,92775.0,92764.0,0.2118]
[1734985126119,0.003,92775.0,92771.0,0.001]
[1734985127530,0.003,92775.0,92762.0,0.414779]
[1734985127824,0.3648,92779.0,92764.0,0.001]
[1734985128027,0.3648,92779.0,92769.0,0.13776202]
[1734985128423,0.3618,92779.0,92769.0,0.13776202]
[1734985128625,0.005,92775.0,92771.0,0.001]
[1734985128827,0.005,92775.0,92769.0,0.06376202]
[1734985129030,0.004,92775.0,92762.0,0.3608]
[1734985129228,0.3608,92771.0,92769.0,0.001]
[1734985130327,0.00556001,92779.0,92770.0,0.053974]
[1734985130632,0.3608,92810.0,92786.0,0.053965]
[1734985130932,0.3608,92810.0,92787.0,0.3608]
[1734985131115,0.3608,92795.0,92781.0,0.3608]
[1734985131422,0.3608,92795.0,92789.0,0.053963]
[1734985131730,0.3608,92795.0,92785.0,0.13776202]
[1734985131918,0.3608,92787.0,92785.0,0.13776202]
[1734985132118,0.3608,92787.0,92777.0,0.05397]
[1734985132119,0.3608,92787.0,92779.0,0.01510284]
[1734985132315,0.3608,92787.0,92777.0,0.13776202]
[1734985133121,0.3608,92778.0,92777.0,0.13776202]
[1734985133320,0.3608,92778.0,92770.0,0.01517602]
[1734985133527,0.3608,92778.0,92768.0,0.19173702]
[1734985133717,0.3608,92778.0,92768.0,0.13776202]
[1734985134119,0.3608,92769.0,92768.0,0.13776202]
[1734985134323,0.001,92787.0,92768.0,0.3608]
[1734985134521,0.001,92787.0,92782.0,0.053967]
[1734985134722,0.001,92787.0,92777.0,0.13776202]
[1734985134723,0.3608,92788.0,92780.0,0.053969]
[1734985134923,0.3608,92788.0,92777.0,0.13776202]
[1734985135227,0.3608,92779.0,92777.0,0.13776202]
[1734985135426,0.3608,92779.0,92770.0,0.053974]
[1734985135626,0.3608,92779.0,92769.0,0.13776202]
[1734985135933,0.3608,92779.0,92774.0,0.053971]
[1734985137324,0.3608,92779.0,92770.0,0.2299]
[1734985137534,0.3608,92771.0,92767.0,0.00161658]
[1734985137916,0.3608,92771.0,92741.0,0.3608]
[1734985137917,0.6608,92771.0,92740.0,0.13776202]
[1734985138117,0.3608,92747.0,92739.0,0.19211491]
[1734985138929,0.3608,92747.0,92720.0,0.13776202]
[1734985139131,0.3608,92731.0,92720.0,0.13776202]
[1734985140835,0.3608,92731.0,92729.0,0.05561546]
[1734985141039,0.3618,92731.0,92729.0,0.00161746]
[1734985141437,0.3618,92731.0,92729.0,0.05561546]
[1734985141832,0.3618,92731.0,92730.0,0.3608]
[1734985141833,0.001,92731.0,92730.0,0.3608]
[1734985142032,0.001,92731.0,92729.0,0.00161746]
[1734985142225,0.3608,92738.0,92729.0,0.00261746]
[1734985142430,0.3608,92738.0,92730.0,1.5]
[1734985143730,0.3608,92738.0,92729.0,0.00261746]
[1734985143941,0.3608,92731.0,92713.0,0.19345529]
[1734985144134,0.3608,92714.0,92713.0,0.19345529]
[1734985144435,0.3608,92714.0,92699.0,0.32242549]
[1734985144630,0.3608,92700.0,92699.0,0.32242549]
[1734985145030,0.3608,92700.0,92688.0,0.00161816]
[1734985145234,0.3608,92689.0,92688.0,0.00161816]
[1734985147236,0.3628,92689.0,92688.0,0.00161816]
[1734985148543,0.47068824,92689.0,92664.0,0.3608]
[1734985148747,0.3608,92677.0,92664.0,0.3608]
[1734985150147,0.3608,92677.0,92664.0,0.3628]
[1734985152545,0.3608,92677.0,92665.0,1.5]
[1734985153150,0.3658,92677.0,92668.0,0.054033]
[1734985153340,0.005,92677.0,92665.0,1.50128]
[1734985153538,0.005,92677.0,92669.0,0.054033]
[1734985153849,0.3608,92681.0,92672.0,0.3608]
[1734985154050,0.3608,92673.0,92665.0,0.00228]
[1734985154259,0.3608,92673.0,92665.0,0.001]
[1734985154440,0.3608,92673.0,92668.0,0.002]
[1734985154948,0.3608,92673.0,92672.0,0.001]
[1734985157252,0.3608,92673.0,92655.0,1.5]
[1734985157452,0.3608,92665.0,92655.0,1.5]
[1734985158952,0.3608,92665.0,92652.0,0.054043]
[1734985159149,0.3608,92665.0,92657.0,0.05404]
[1734985159150,0.3628,92665.0,92657.0,0.05404]
[1734985159947,0.3608,92683.0,92657.0,0.6608]
[1734985160157,0.3608,92683.0,92673.0,0.054031]
[1734985160651,0.3608,92683.0,92674.0,0.2214]
[1734985161251,0.3608,92683.0,92680.0,0.054026]
[1734985161853,0.3658,92683.0,92680.0,0.054026]
[1734985162450,0.005,92683.0,92681.0,0.054026]
[1734985162753,0.3608,92713.0,92695.0,0.054018]
[1734985163149,0.3608,92713.0,92697.0,0.054017]
[1734985163452,0.3608,92713.0,92706.0,0.054012]
[1734985163751,0.3608,92713.0,92693.0,0.00132]
[1734985163946,0.3608,92713.0,92683.0,0.2401]
[1734985163947,0.001,92696.0,92683.0,0.219123]
[1734985164545,0.3608,92693.0,92683.0,0.22875276]
[1734985165253,0.3608,92693.0,92683.0,0.001]
[1734985166755,0.3608,92710.0,92688.0,0.3608]
[1734985167057,0.15779807,92705.0,92700.0,0.3608]
[1734985168551,0.13776202,92710.0,92689.0,0.2245]
[1734985168756,0.3608,92701.0,92689.0,0.2245]
[1734985168954,0.3608,92701.0,92689.0,0.1495]
[1734985169158,0.3608,92701.0,92688.0,0.3608]
[1734985169355,0.3608,92701.0,92700.0,0.003]
[1734985170547,0.18967486,92710.0,92700.0,0.005]
[1734985170752,0.00060001,92712.0,92711.0,0.054008]
[1734985170947,0.05409,92724.0,92712.0,0.054008]
[1734985171257,0.05409,92724.0,92718.0,0.3608]
[1734985171457,0.05409,92724.0,92722.0,0.054002]
[1734985171656,0.00161826,92732.0,92718.0,0.3608]
[1734985171858,0.00161826,92732.0,92731.0,0.053997]
[1734985172055,0.00161826,92732.0,92731.0,0.414797]
[1734985172855,0.05409,92741.0,92731.0,0.414797]
[1734985173051,0.05409,92741.0,92740.0,0.3608]
[1734985173753,0.22128734,92753.0,92750.0,0.053986]
[1734985173962,0.22128734,92753.0,92752.0,0.3608]
[1734985174163,0.22128734,92766.0,92752.0,0.3608]
[1734985174367,0.22128734,92766.0,92765.0,0.3608]
[1734985175063,0.22128734,92766.0,92760.0,0.3608]
[1734985175563,0.00161757,92772.0,92760.0,0.3608]
[1734985176261,0.3608,92764.0,92752.0,0.3608]
[1734985176569,0.3608,92756.0,92739.0,0.3608]
[1734985176860,0.2374,92763.0,92740.0,0.19175402]
[1734985177063,0.3608,92768.0,92747.0,0.3608]
[1734985178861,0.3608,92757.0,92747.0,0.3608]
[1734985179255,0.3608,92768.0,92747.0,0.3608]
[1734985179656,0.3608,92756.0,92747.0,0.3608]
[1734985180368,0.3608,92756.0,92747.0,0.3668]
[1734985180965,0.2328,92766.0,92747.0,0.3608]
[1734985181359,0.3608,92757.0,92747.0,0.3608]
[1734985182368,0.2328,92766.0,92747.0,0.3608]
[1734985182665,0.10781438,92765.0,92747.0,0.3608]
[1734985182965,0.3608,92757.0,92747.0,0.3608]
[1734985183661,0.3608,92757.0,92747.0,0.3678]
[1734985183851,0.3608,92757.0,92747.0,0.3718]
[1734985184057,0.3608,92768.0,92756.0,0.3608]
[1734985185860,0.22128734,92798.0,92764.0,0.3608]
[1734985186064,0.22128734,92798.0,92786.0,0.053965]
[1734985186668,0.22128734,92798.0,92797.0,0.3608]
[1734985187254,0.2406,92825.0,92797.0,0.3608]
[1734985187255,0.46188734,92825.0,92798.0,0.053958]
[1734985187469,0.46188734,92825.0,92798.0,0.414758]
[1734985188063,0.00973461,92821.0,92798.0,0.414758]
[1734985188458,0.00973461,92821.0,92798.0,0.3608]
[1734985188857,0.13776202,92810.0,92798.0,0.3608]
[1734985189172,0.3608,92802.0,92784.0,0.3608]
[1734985189368,0.3608,92802.0,92798.0,0.002]
[1734985190169,0.3608,92802.0,92784.0,0.3608]
[1734985190370,0.3608,92813.0,92794.0,0.3608]
[1734985191368,0.00965653,92821.0,92797.0,0.053959]
[1734985191570,0.3608,92831.0,92795.0,1.8608]
[1734985191764,0.3608,92843.0,92814.0,0.053948]
[1734985191965,0.3608,92843.0,92819.0,0.3608]
[1734985192268,0.3608,92843.0,92820.0,0.13776202]
[1734985192269,0.10774352,92842.0,92820.0,0.13776202]
[1734985192467,0.3608,92822.0,92811.0,0.3608]
[1734985192864,0.49856202,92830.0,92811.0,0.3608]
[1734985193167,0.3608,92830.0,92804.0,0.053954]
[1734985193373,0.3608,92830.0,92801.0,0.3608]
[1734985193574,0.3608,92809.0,92801.0,0.3608]
[1734985193972,0.3608,92809.0,92801.0,0.2858]
[1734985195169,0.3608,92821.0,92803.0,0.053955]
[1734985196058,0.3608,92821.0,92801.0,0.2858]
[1734985196575,0.3608,92821.0,92790.0,1.63776202]
[1734985196576,0.3608,92812.0,92792.0,0.3608]
[1734985196768,0.13776202,92810.0,92792.0,0.3608]
[1734985196970,0.3608,92812.0,92782.0,0.05558348]
[1734985196971,0.3608,92804.0,92782.0,0.05558348]
[1734985197177,0.3608,92804.0,92791.0,0.3608]
[1734985197375,0.3608,92804.0,92793.0,0.053961]
[1734985197676,0.3608,92804.0,92791.0,0.3608]
[1734985198775,0.3608,92808.0,92790.0,0.13776202]
[1734985198970,0.3608,92808.0,92790.0,0.06276202]
[1734985199177,0.3608,92808.0,92790.0,0.11672402]
[1734985199978,0.37073345,92815.0,92796.0,0.053959]
[1734985200482,0.3608,92832.0,92812.0,0.05395]
[1734985200869,0.3608,92832.0,92814.0,0.3608]
[1734985201072,0.3608,92832.0,92817.0,0.053947]
[1734985201665,0.3608,92832.0,92820.0,0.13776202]
[1734985201871,0.3608,92832.0,92817.0,0.053947]
[1734985202176,0.00161662,92834.0,92814.0,0.3608]
[1734985202177,0.00161662,92834.0,92820.0,0.13776202]